[Event "*** Titled Tuesday Blitz"]
[Site "Chess.com"]
[Date "2020.04.07"]
[Round "4"]
[White "Flawless_Fighter"]
[Black "fidezivkovic"]
[Result "1-0"]
[WhiteElo "2563"]
[BlackElo "2349"]
[TimeControl "180+1"]
[EndTime "13:40:59 PDT"]
[Termination "Flawless_Fighter won on time"]

1. e4 {[%clk 0:03:00.9]} 1... c5 {[%clk 0:02:59.3]} 2. Nf3 {[%clk 0:03:00.9]}
2... g6 {[%clk 0:02:58.8]} 3. c3 {[%clk 0:03:00.5]} 3... Bg7 {[%clk 0:02:57.3]}
4. d4 {[%clk 0:03:00.2]} 4... cxd4 {[%clk 0:02:56.9]} 5. cxd4 {[%clk 0:03:01.1]}
5... d5 {[%clk 0:02:56.8]} 6. e5 {[%clk 0:03:01.7]} 6... Bg4 {[%clk 0:02:55.9]}
7. Nc3 {[%clk 0:02:58.1]} 7... Nc6 {[%clk 0:02:50.6]} 8. Bb5 {[%clk 0:02:55]}
8... Rc8 {[%clk 0:02:46.6]} 9. h3 {[%clk 0:02:50.4]} 9... Bxf3 {[%clk
0:02:45.6]} 10. Qxf3 {[%clk 0:02:51.3]} 10... e6 {[%clk 0:02:44.9]} 11. O-O
{[%clk 0:02:46]} 11... Ne7 {[%clk 0:02:43.9]} 12. Bg5 {[%clk 0:02:45.2]} 12...
O-O {[%clk 0:02:42.9]} 13. Rad1 {[%clk 0:02:40.9]} 13... Qb6 {[%clk 0:02:37.3]}
14. Qe2 {[%clk 0:02:27.1]} 14... Nf5 {[%clk 0:02:32.3]} 15. Bxc6 {[%clk
0:02:21.6]} 15... Rxc6 {[%clk 0:02:30]} 16. Na4 {[%clk 0:02:06.4]} 16... Qc7
{[%clk 0:02:05.7]} 17. g4 {[%clk 0:01:56.9]} 17... Ne7 {[%clk 0:01:55.8]} 18.
Nc5 {[%clk 0:01:46.4]} 18... b6 {[%clk 0:01:52.4]} 19. Na6 {[%clk 0:01:46]}
19... Qd7 {[%clk 0:01:49.9]} 20. Rc1 {[%clk 0:01:42.7]} 20... Rfc8 {[%clk
0:01:47.6]} 21. Qb5 {[%clk 0:01:39.1]} 21... Qb7 {[%clk 0:01:30]} 22. Rxc6
{[%clk 0:01:22.4]} 22... Nxc6 {[%clk 0:01:28.1]} 23. Be3 {[%clk 0:01:13.5]}
23... f6 {[%clk 0:01:20.1]} 24. exf6 {[%clk 0:01:00.6]} 24... Bxf6 {[%clk
0:01:18.5]} 25. Nc5 {[%clk 0:00:52]} 25... Qf7 {[%clk 0:00:56]} 26. Nb3 {[%clk
0:00:46.2]} 26... Ne7 {[%clk 0:00:46]} 27. Rc1 {[%clk 0:00:43.5]} 27... Rxc1+
{[%clk 0:00:34.8]} 28. Bxc1 {[%clk 0:00:44.4]} 28... g5 {[%clk 0:00:32.1]} 29.
Be3 {[%clk 0:00:42.4]} 29... Ng6 {[%clk 0:00:29]} 30. Qc6 {[%clk 0:00:38.9]}
30... Nh4 {[%clk 0:00:25.7]} 31. Nd2 {[%clk 0:00:35.4]} 31... Kg7 {[%clk
0:00:22.5]} 32. b4 {[%clk 0:00:31]} 32... Be7 {[%clk 0:00:20.6]} 33. b5 {[%clk
0:00:28.5]} 33... h5 {[%clk 0:00:17.1]} 34. Qd7 {[%clk 0:00:25.9]} 34... hxg4
{[%clk 0:00:15.5]} 35. hxg4 {[%clk 0:00:26.8]} 35... Kf8 {[%clk 0:00:13.2]} 36.
a4 {[%clk 0:00:25.6]} 36... Ng6 {[%clk 0:00:04.9]} 37. Nf3 {[%clk 0:00:21.1]}
37... Qxf3 {[%clk 0:00:03]} 38. Qxe6 {[%clk 0:00:21.2]} 38... Nf4 {[%clk
0:00:01.8]} 39. Qf5+ {[%clk 0:00:18]} 1-0

[Event "*** Titled Tuesday Blitz"]
[Site "Chess.com"]
[Date "2020.04.07"]
[Round "4"]
[White "Nikolakis2014"]
[Black "David_Paravyan"]
[Result "1-0"]
[WhiteElo "2704"]
[BlackElo "2958"]
[TimeControl "180+1"]
[EndTime "13:41:00 PDT"]
[Termination "Nikolakis2014 won by resignation"]

1. Nf3 {[%clk 0:03:00.9]} 1... Nf6 {[%clk 0:02:34.3]} 2. c4 {[%clk 0:02:59.9]}
2... g6 {[%clk 0:02:33.9]} 3. Nc3 {[%clk 0:02:58.1]} 3... Bg7 {[%clk 0:02:34]}
4. e4 {[%clk 0:02:57.9]} 4... e5 {[%clk 0:02:34.4]} 5. Nxe5 {[%clk 0:02:56.2]}
5... O-O {[%clk 0:02:35]} 6. Be2 {[%clk 0:02:48.9]} 6... Re8 {[%clk 0:02:34.9]}
7. Nf3 {[%clk 0:02:49.1]} 7... Nxe4 {[%clk 0:02:35.4]} 8. O-O {[%clk 0:02:49.1]}
8... Nc6 {[%clk 0:02:22.2]} 9. d4 {[%clk 0:02:44.5]} 9... d6 {[%clk 0:02:20.9]}
10. h3 {[%clk 0:02:23.4]} 10... Bf5 {[%clk 0:02:19.3]} 11. Nd5 {[%clk 0:02:14]}
11... Be6 {[%clk 0:02:11]} 12. Bd3 {[%clk 0:01:58]} 12... Bxd5 {[%clk
0:02:00.4]} 13. cxd5 {[%clk 0:01:57.5]} 13... Nxd4 {[%clk 0:02:00.6]} 14. Nxd4
{[%clk 0:01:48.2]} 14... Bxd4 {[%clk 0:02:01.5]} 15. Bb5 {[%clk 0:01:48]} 15...
Bxf2+ {[%clk 0:01:37.9]} 16. Rxf2 {[%clk 0:01:39.6]} 16... Nxf2 {[%clk 0:01:38]}
17. Kxf2 {[%clk 0:01:38]} 17... c6 {[%clk 0:01:38.5]} 18. Be2 {[%clk 0:01:29.8]}
18... Qb6+ {[%clk 0:01:30.5]} 19. Kf1 {[%clk 0:01:29.4]} 19... Re5 {[%clk
0:01:31.1]} 20. Bf3 {[%clk 0:01:18.4]} 20... Rae8 {[%clk 0:01:29.9]} 21. Bd2
{[%clk 0:01:18.5]} 21... cxd5 {[%clk 0:01:26.1]} 22. Bc3 {[%clk 0:01:15.2]}
22... Rf5 {[%clk 0:01:22.1]} 23. Qd4 {[%clk 0:01:10.6]} 23... Qxd4 {[%clk
0:01:15.1]} 24. Bxd4 {[%clk 0:01:10.8]} 24... Rf4 {[%clk 0:01:12.4]} 25. Rd1
{[%clk 0:01:08.2]} 25... b6 {[%clk 0:01:11]} 26. Kg1 {[%clk 0:01:07.3]} 26... h5
{[%clk 0:01:11.1]} 27. Bxd5 {[%clk 0:01:03.5]} 27... Re2 {[%clk 0:01:10.4]} 28.
Bf3 {[%clk 0:01:03.1]} 28... Rc2 {[%clk 0:01:10.1]} 29. Bc3 {[%clk 0:01:02.7]}
29... Rc4 {[%clk 0:01:02.7]} 30. Rxd6 {[%clk 0:01:01]} 30... R4xc3 {[%clk
0:01:02.7]} 31. bxc3 {[%clk 0:01:00.5]} 31... Rxc3 {[%clk 0:01:02]} 32. Bd5
{[%clk 0:01:00.1]} 32... Rc7 {[%clk 0:01:02.2]} 33. Bb3 {[%clk 0:00:59.2]} 33...
Kg7 {[%clk 0:01:02.2]} 34. Kf2 {[%clk 0:00:59.4]} 34... b5 {[%clk 0:00:57.9]}
35. Ra6 {[%clk 0:00:58.5]} 35... Rd7 {[%clk 0:00:54.4]} 36. Ke3 {[%clk
0:00:57.3]} 36... Re7+ {[%clk 0:00:54.3]} 37. Kd3 {[%clk 0:00:57.2]} 37... Rd7+
{[%clk 0:00:54.7]} 38. Kc3 {[%clk 0:00:57.2]} 38... Re7 {[%clk 0:00:55.3]} 39.
Kb4 {[%clk 0:00:52.5]} 39... Re2 {[%clk 0:00:53.4]} 40. Rxa7 {[%clk 0:00:52.4]}
40... Rxg2 {[%clk 0:00:53.7]} 41. Rxf7+ {[%clk 0:00:52.3]} 41... Kh6 {[%clk
0:00:54]} 42. Kxb5 {[%clk 0:00:51.2]} 42... Rg3 {[%clk 0:00:54.2]} 43. h4 {[%clk
0:00:50.5]} 43... Rh3 {[%clk 0:00:54.1]} 44. Rf4 {[%clk 0:00:48.5]} 44... Rg3
{[%clk 0:00:50.4]} 45. Be6 {[%clk 0:00:45.8]} 45... g5 {[%clk 0:00:50.3]} 46.
Rf6+ {[%clk 0:00:38.2]} 46... Kg7 {[%clk 0:00:50.2]} 47. hxg5 {[%clk 0:00:37.9]}
47... h4 {[%clk 0:00:43]} 48. Rf4 {[%clk 0:00:20.7]} 48... Rxg5+ {[%clk
0:00:42.6]} 49. Kb4 {[%clk 0:00:20.5]} 49... Rh5 {[%clk 0:00:42.9]} 50. a4
{[%clk 0:00:20.2]} 50... h3 {[%clk 0:00:42.9]} 51. Bxh3 {[%clk 0:00:19.7]} 51...
Rxh3 {[%clk 0:00:42.6]} 52. a5 {[%clk 0:00:20.2]} 52... Rh1 {[%clk 0:00:42.3]}
53. a6 {[%clk 0:00:20.1]} 53... Kg6 {[%clk 0:00:36]} 54. Kb5 {[%clk 0:00:19.7]}
54... Kg5 {[%clk 0:00:36.3]} 55. Rb4 {[%clk 0:00:19.4]} 55... Ra1 {[%clk
0:00:35.5]} 56. Kb6 {[%clk 0:00:19.6]} 56... Kf6 {[%clk 0:00:35.5]} 57. a7
{[%clk 0:00:19.3]} 57... Ke7 {[%clk 0:00:36]} 58. Kb7 {[%clk 0:00:19.5]} 1-0

[Event "*** Titled Tuesday Blitz"]
[Site "Chess.com"]
[Date "2020.04.07"]
[Round "4"]
[White "chessdjw"]
[Black "steepedgames"]
[Result "1/2-1/2"]
[WhiteElo "2646"]
[BlackElo "2439"]
[TimeControl "180+1"]
[EndTime "13:41:00 PDT"]
[Termination "Game drawn by repetition"]

1. e4 {[%clk 0:03:00.9]} 1... e6 {[%clk 0:02:58.9]} 2. d4 {[%clk 0:02:59.7]}
2... d5 {[%clk 0:02:59.5]} 3. Nc3 {[%clk 0:03:00.1]} 3... Nf6 {[%clk 0:02:59.4]}
4. exd5 {[%clk 0:03:00.5]} 4... exd5 {[%clk 0:02:59.2]} 5. Bd3 {[%clk
0:02:59.6]} 5... Bd6 {[%clk 0:02:58.4]} 6. Nge2 {[%clk 0:02:59.1]} 6... O-O
{[%clk 0:02:57.6]} 7. O-O {[%clk 0:02:58.4]} 7... c6 {[%clk 0:02:53.8]} 8. h3
{[%clk 0:02:57.5]} 8... b5 {[%clk 0:02:51.2]} 9. a3 {[%clk 0:02:56.8]} 9... a5
{[%clk 0:02:51.1]} 10. Bf4 {[%clk 0:02:55.2]} 10... Ba6 {[%clk 0:02:48.1]} 11.
Re1 {[%clk 0:02:49.7]} 11... Re8 {[%clk 0:02:39.5]} 12. Qd2 {[%clk 0:02:46]}
12... b4 {[%clk 0:02:10.5]} 13. Na4 {[%clk 0:02:41.5]} 13... Bxd3 {[%clk
0:02:06.8]} 14. cxd3 {[%clk 0:02:23.2]} 14... Na6 {[%clk 0:02:00.1]} 15. Ng3
{[%clk 0:02:12]} 15... Rxe1+ {[%clk 0:01:50.4]} 16. Rxe1 {[%clk 0:02:10.8]}
16... bxa3 {[%clk 0:01:50.5]} 17. bxa3 {[%clk 0:01:56.1]} 17... Bxa3 {[%clk
0:01:47]} 18. Re3 {[%clk 0:01:34.4]} 18... c5 {[%clk 0:01:41.5]} 19. Be5 {[%clk
0:01:29.2]} 19... cxd4 {[%clk 0:01:35.6]} 20. Bxd4 {[%clk 0:01:30.1]} 20... Rc8
{[%clk 0:01:19.9]} 21. Rf3 {[%clk 0:01:16.6]} 21... Bc1 {[%clk 0:01:16.3]} 22.
Qe2 {[%clk 0:00:56.5]} 22... Qe8 {[%clk 0:01:01.6]} 23. Bxf6 {[%clk 0:00:55.5]}
23... Qxe2 {[%clk 0:00:48.7]} 24. Nxe2 {[%clk 0:00:55]} 24... gxf6 {[%clk
0:00:49.6]} 25. Rxf6 {[%clk 0:00:52.3]} 25... Nc5 {[%clk 0:00:48.1]} 26. Nb6
{[%clk 0:00:39.6]} 26... Re8 {[%clk 0:00:46.9]} 27. Nxc1 {[%clk 0:00:34.6]}
27... Re1+ {[%clk 0:00:46.3]} 28. Kh2 {[%clk 0:00:35.2]} 28... Rxc1 {[%clk
0:00:47.1]} 29. Nxd5 {[%clk 0:00:28.4]} 29... Nxd3 {[%clk 0:00:45.4]} 30. Ra6
{[%clk 0:00:28.6]} 30... Ra1 {[%clk 0:00:39.2]} 31. g4 {[%clk 0:00:25]} 31... a4
{[%clk 0:00:38.8]} 32. g5 {[%clk 0:00:25.3]} 32... Nxf2 {[%clk 0:00:28.7]} 33.
Kg3 {[%clk 0:00:23.5]} 33... Ne4+ {[%clk 0:00:27.7]} 34. Kf4 {[%clk 0:00:24]}
34... Nc5 {[%clk 0:00:27]} 35. Ra8+ {[%clk 0:00:23]} 35... Kg7 {[%clk
0:00:26.6]} 36. h4 {[%clk 0:00:15.2]} 36... Ne6+ {[%clk 0:00:25.7]} 37. Kg4
{[%clk 0:00:14.9]} 37... h6 {[%clk 0:00:25.2]} 38. Nf6 {[%clk 0:00:13.6]} 38...
hxg5 {[%clk 0:00:19.6]} 39. Nh5+ {[%clk 0:00:13.8]} 39... Kh7 {[%clk 0:00:18.3]}
40. hxg5 {[%clk 0:00:09.9]} 40... Rg1+ {[%clk 0:00:17.2]} 41. Kh4 {[%clk
0:00:09.6]} 41... Rxg5 {[%clk 0:00:16.3]} 42. Rxa4 {[%clk 0:00:08.9]} 42... Rg6
{[%clk 0:00:14.9]} 43. Nf4 {[%clk 0:00:08.7]} 43... Nxf4 {[%clk 0:00:14.1]} 44.
Rxf4 {[%clk 0:00:08.9]} 44... Kg7 {[%clk 0:00:15]} 45. Kh5 {[%clk 0:00:08.7]}
45... Rh6+ {[%clk 0:00:15.1]} 46. Kg5 {[%clk 0:00:08.8]} 46... Rg6+ {[%clk
0:00:16]} 47. Kh5 {[%clk 0:00:09.4]} 47... Rh6+ {[%clk 0:00:16.7]} 48. Kg5
{[%clk 0:00:09.7]} 48... Rg6+ {[%clk 0:00:17.6]} 49. Kh5 {[%clk 0:00:10.3]}
1/2-1/2

[Event "*** Titled Tuesday Blitz"]
[Site "Chess.com"]
[Date "2020.04.07"]
[Round "4"]
[White "MusicCityMaster"]
[Black "AlleyOoper"]
[Result "0-1"]
[WhiteElo "2321"]
[BlackElo "2494"]
[TimeControl "180+1"]
[EndTime "13:41:00 PDT"]
[Termination "AlleyOoper won by resignation"]

1. e4 {[%clk 0:03:00.6]} 1... c6 {[%clk 0:02:57.5]} 2. d4 {[%clk 0:02:59.7]}
2... d5 {[%clk 0:02:58.4]} 3. Nc3 {[%clk 0:02:58.7]} 3... dxe4 {[%clk
0:02:44.8]} 4. Nxe4 {[%clk 0:02:58.4]} 4... Nf6 {[%clk 0:02:45.5]} 5. Nxf6+
{[%clk 0:02:57.7]} 5... exf6 {[%clk 0:02:46.4]} 6. Bc4 {[%clk 0:02:57.2]} 6...
Bd6 {[%clk 0:02:46.9]} 7. Ne2 {[%clk 0:02:47.5]} 7... O-O {[%clk 0:02:46.4]} 8.
O-O {[%clk 0:02:44.4]} 8... Nd7 {[%clk 0:02:46.5]} 9. Bf4 {[%clk 0:02:43.7]}
9... Nb6 {[%clk 0:02:46.6]} 10. Bd3 {[%clk 0:02:41.8]} 10... Bg4 {[%clk
0:02:45.8]} 11. f3 {[%clk 0:02:39.8]} 11... Bxf4 {[%clk 0:02:43.8]} 12. fxg4
{[%clk 0:02:35.4]} 12... Bc7 {[%clk 0:02:31.4]} 13. c3 {[%clk 0:02:28.2]} 13...
Nd5 {[%clk 0:02:31]} 14. Rf3 {[%clk 0:02:26.8]} 14... Qd6 {[%clk 0:02:30.3]} 15.
Rh3 {[%clk 0:02:04]} 15... g6 {[%clk 0:02:30]} 16. Qd2 {[%clk 0:02:04.3]} 16...
Nf4 {[%clk 0:02:26.4]} 17. Nxf4 {[%clk 0:01:54.7]} 17... Qxf4 {[%clk 0:02:26]}
18. Qxf4 {[%clk 0:01:50.3]} 18... Bxf4 {[%clk 0:02:26.9]} 19. Rf1 {[%clk
0:01:50.1]} 19... Bg5 {[%clk 0:02:21.7]} 20. Rhf3 {[%clk 0:01:45.7]} 20... Rae8
{[%clk 0:02:17.6]} 21. g3 {[%clk 0:01:44.9]} 21... Re3 {[%clk 0:01:53.1]} 22. h4
{[%clk 0:01:42.6]} 22... Rxf3 {[%clk 0:01:53.4]} 23. Rxf3 {[%clk 0:01:43]} 23...
Bc1 {[%clk 0:01:53.9]} 24. b3 {[%clk 0:01:33.8]} 24... Kg7 {[%clk 0:01:51.5]}
25. Kf2 {[%clk 0:01:32]} 25... Re8 {[%clk 0:01:43.4]} 26. Bf1 {[%clk 0:01:06.6]}
26... Bd2 {[%clk 0:01:38.1]} 27. Rd3 {[%clk 0:01:04.3]} 27... Be1+ {[%clk
0:01:24.2]} 28. Kf3 {[%clk 0:01:04.6]} 28... b5 {[%clk 0:01:10]} 29. c4 {[%clk
0:01:03]} 29... b4 {[%clk 0:01:04.8]} 30. d5 {[%clk 0:01:00.9]} 30... cxd5
{[%clk 0:01:04.8]} 31. cxd5 {[%clk 0:01:01.3]} 31... Bc3 {[%clk 0:01:01.7]} 32.
d6 {[%clk 0:00:59]} 32... Rd8 {[%clk 0:00:50.1]} 33. Rd5 {[%clk 0:00:48.6]}
33... Be5 {[%clk 0:00:40.3]} 34. d7 {[%clk 0:00:47.3]} 34... Kf8 {[%clk
0:00:40.5]} 35. Ba6 {[%clk 0:00:42.7]} 35... Ke7 {[%clk 0:00:36.6]} 36. Bc8
{[%clk 0:00:42]} 36... Ke6 {[%clk 0:00:36.9]} 37. Rb5 {[%clk 0:00:39]} 37... Bd6
{[%clk 0:00:34.9]} 38. Ke4 {[%clk 0:00:32.8]} 38... Bxg3 {[%clk 0:00:32.1]} 39.
h5 {[%clk 0:00:31.9]} 39... Bd6 {[%clk 0:00:30.5]} 40. Ra5 {[%clk 0:00:25.2]}
40... Bc7 {[%clk 0:00:23.1]} 41. Rxa7 {[%clk 0:00:22.2]} 41... f5+ {[%clk
0:00:23.3]} 42. gxf5+ {[%clk 0:00:22.1]} 42... gxf5+ {[%clk 0:00:24.2]} 43. Kf3
{[%clk 0:00:21.8]} 43... Bd6 {[%clk 0:00:24.6]} 44. Ra6 {[%clk 0:00:18.1]} 44...
Ke5 {[%clk 0:00:23]} 45. Ra5+ {[%clk 0:00:17]} 45... Ke6 {[%clk 0:00:23.1]} 46.
Ra6 {[%clk 0:00:16.2]} 46... h6 {[%clk 0:00:23.4]} 47. Rb6 {[%clk 0:00:14.8]}
47... Ke5 {[%clk 0:00:23.2]} 48. Rxb4 {[%clk 0:00:14.9]} 48... Bxb4 {[%clk
0:00:22.7]} 0-1

[Event "*** Titled Tuesday Blitz"]
[Site "Chess.com"]
[Date "2020.04.07"]
[Round "4"]
[White "ChadBiryani"]
[Black "cukin84"]
[Result "1-0"]
[WhiteElo "2397"]
[BlackElo "2111"]
[TimeControl "180+1"]
[EndTime "13:41:00 PDT"]
[Termination "ChadBiryani won by checkmate"]

1. d4 {[%clk 0:02:59.3]} 1... f5 {[%clk 0:02:59.5]} 2. Bg5 {[%clk 0:02:58.3]}
2... h6 {[%clk 0:02:59.1]} 3. Bh4 {[%clk 0:02:58.1]} 3... g5 {[%clk 0:02:58.9]}
4. Bg3 {[%clk 0:02:58.4]} 4... Nf6 {[%clk 0:02:58]} 5. e3 {[%clk 0:02:58.3]}
5... d6 {[%clk 0:02:57.5]} 6. Bd3 {[%clk 0:02:52.1]} 6... Bg7 {[%clk 0:02:56.5]}
7. Nd2 {[%clk 0:02:50.6]} 7... c6 {[%clk 0:02:53.5]} 8. c3 {[%clk 0:02:50.3]}
8... O-O {[%clk 0:02:50.2]} 9. Ne2 {[%clk 0:02:42.2]} 9... b5 {[%clk 0:02:47.7]}
10. Qc2 {[%clk 0:02:38.3]} 10... e6 {[%clk 0:02:43.6]} 11. a4 {[%clk 0:02:37.2]}
11... bxa4 {[%clk 0:02:36.5]} 12. Rxa4 {[%clk 0:02:11.9]} 12... Qe7 {[%clk
0:02:34.9]} 13. O-O {[%clk 0:02:08.6]} 13... Nbd7 {[%clk 0:02:33.8]} 14. f3
{[%clk 0:02:06.7]} 14... Nb6 {[%clk 0:02:33]} 15. Ra5 {[%clk 0:02:02.9]} 15...
Nbd5 {[%clk 0:02:31.3]} 16. Bf2 {[%clk 0:01:56.8]} 16... e5 {[%clk 0:02:26.3]}
17. Ng3 {[%clk 0:00:51.7]} 17... f4 {[%clk 0:02:10.6]} 18. exf4 {[%clk
0:00:48.2]} 18... gxf4 {[%clk 0:02:07.8]} 19. Nf5 {[%clk 0:00:45.6]} 19... Bxf5
{[%clk 0:02:06.8]} 20. Bxf5 {[%clk 0:00:46.5]} 20... Kh8 {[%clk 0:02:03.9]} 21.
Re1 {[%clk 0:00:45.1]} 21... Nd7 {[%clk 0:01:58.5]} 22. Be4 {[%clk 0:00:35.1]}
22... N7b6 {[%clk 0:01:47.6]} 23. dxe5 {[%clk 0:00:28.3]} 23... Bxe5 {[%clk
0:01:42.6]} 24. Kh1 {[%clk 0:00:18.9]} 24... Qg5 {[%clk 0:01:40.1]} 25. Rg1
{[%clk 0:00:16.1]} 25... Rg8 {[%clk 0:01:38.7]} 26. b3 {[%clk 0:00:13.5]} 26...
Ne3 {[%clk 0:01:33.9]} 27. Bxe3 {[%clk 0:00:10]} 27... fxe3 {[%clk 0:01:33.8]}
28. Nc4 {[%clk 0:00:10.7]} 28... Nxc4 {[%clk 0:01:32.7]} 29. bxc4 {[%clk
0:00:11.6]} 29... Bxh2 {[%clk 0:01:29.6]} 30. Rxg5 {[%clk 0:00:06.7]} 30... Rxg5
{[%clk 0:01:27.3]} 31. Kxh2 {[%clk 0:00:06.7]} 31... Rh5+ {[%clk 0:01:27]} 32.
Kg3 {[%clk 0:00:06.9]} 32... Rg8+ {[%clk 0:01:25.9]} 33. Kf4 {[%clk 0:00:07.4]}
33... d5 {[%clk 0:01:24]} 34. cxd5 {[%clk 0:00:07.5]} 34... cxd5 {[%clk
0:01:23.9]} 35. Bxd5 {[%clk 0:00:07.6]} 35... Rxd5 {[%clk 0:01:22.5]} 36. Kxe3
{[%clk 0:00:08]} 36... Re8+ {[%clk 0:01:21.1]} 37. Kf2 {[%clk 0:00:08.4]} 37...
Red8 {[%clk 0:01:20.2]} 38. Qe4 {[%clk 0:00:07.5]} 38... Rd2+ {[%clk 0:01:19.6]}
39. Kg3 {[%clk 0:00:08]} 39... Rg8+ {[%clk 0:01:19]} 40. Kh2 {[%clk 0:00:08.4]}
40... Rg7 {[%clk 0:01:16.2]} 41. Qe8+ {[%clk 0:00:07.8]} 41... Kh7 {[%clk
0:01:15.4]} 42. Qe4+ {[%clk 0:00:08.4]} 42... Kh8 {[%clk 0:01:15.1]} 43. Kh3
{[%clk 0:00:07.8]} 43... Ra2 {[%clk 0:01:10.6]} 44. Qe8+ {[%clk 0:00:06.2]}
44... Kh7 {[%clk 0:01:10.3]} 45. Qe4+ {[%clk 0:00:07]} 45... Kh8 {[%clk
0:01:10.2]} 46. Qe8+ {[%clk 0:00:07]} 46... Kh7 {[%clk 0:01:09.9]} 47. g3 {[%clk
0:00:07.4]} 47... Ra5 {[%clk 0:01:08.5]} 48. Qe4+ {[%clk 0:00:07.1]} 48... Kh8
{[%clk 0:01:07.9]} 49. g4 {[%clk 0:00:07.7]} 49... h5 {[%clk 0:01:04]} 50. g5
{[%clk 0:00:07.3]} 50... h4 {[%clk 0:00:59.6]} 51. f4 {[%clk 0:00:05]} 51... Rc5
{[%clk 0:00:56.3]} 52. c4 {[%clk 0:00:04.4]} 52... Ra5 {[%clk 0:00:55.6]} 53.
Kxh4 {[%clk 0:00:03.4]} 53... Ra2 {[%clk 0:00:51.8]} 54. Kg4 {[%clk 0:00:03.2]}
54... Kg8 {[%clk 0:00:49.9]} 55. Qe8+ {[%clk 0:00:03.4]} 55... Kh7 {[%clk
0:00:49.3]} 56. Rh1+ {[%clk 0:00:04]} 56... Rh2 {[%clk 0:00:46.6]} 57. Rxh2#
{[%clk 0:00:04.9]} 1-0

[Event "*** Titled Tuesday Blitz"]
[Site "Chess.com"]
[Date "2020.04.07"]
[Round "4"]
[White "Atanejhad"]
[Black "BvsN"]
[Result "1-0"]
[WhiteElo "2530"]
[BlackElo "2300"]
[TimeControl "180+1"]
[EndTime "13:41:01 PDT"]
[Termination "Atanejhad won on time"]

1. e4 {[%clk 0:03:00.9]} 1... c5 {[%clk 0:02:58.3]} 2. Nf3 {[%clk 0:03:00.8]}
2... e6 {[%clk 0:02:58.6]} 3. d4 {[%clk 0:03:01.2]} 3... cxd4 {[%clk 0:02:59.5]}
4. Nxd4 {[%clk 0:03:02]} 4... Nf6 {[%clk 0:03:00.1]} 5. Bd3 {[%clk 0:02:58.9]}
5... Nc6 {[%clk 0:02:59.7]} 6. Be3 {[%clk 0:02:57.3]} 6... d5 {[%clk 0:02:55.9]}
7. Nd2 {[%clk 0:02:24.1]} 7... e5 {[%clk 0:02:44.1]} 8. N4b3 {[%clk 0:02:06.3]}
8... h6 {[%clk 0:02:42]} 9. c3 {[%clk 0:01:57.1]} 9... Be7 {[%clk 0:02:31.7]}
10. O-O {[%clk 0:01:54.9]} 10... O-O {[%clk 0:02:31.6]} 11. h3 {[%clk 0:01:49]}
11... Be6 {[%clk 0:02:15.1]} 12. Re1 {[%clk 0:01:47.8]} 12... Rc8 {[%clk
0:02:04.2]} 13. Qe2 {[%clk 0:01:44.7]} 13... dxe4 {[%clk 0:01:55.3]} 14. Nxe4
{[%clk 0:01:43.9]} 14... Nd5 {[%clk 0:01:55.6]} 15. Rad1 {[%clk 0:01:36.7]}
15... Nxe3 {[%clk 0:01:52.6]} 16. Qxe3 {[%clk 0:01:36.8]} 16... b6 {[%clk
0:01:38.6]} 17. Ng3 {[%clk 0:01:33.5]} 17... Qc7 {[%clk 0:01:30.6]} 18. Bf5
{[%clk 0:01:27.7]} 18... Bxf5 {[%clk 0:01:25.6]} 19. Nxf5 {[%clk 0:01:28.6]}
19... Bf6 {[%clk 0:01:16.7]} 20. Rd6 {[%clk 0:01:17.7]} 20... Bg5 {[%clk
0:00:41.9]} 21. Qg3 {[%clk 0:00:51.3]} 21... g6 {[%clk 0:00:30.8]} 22. Red1
{[%clk 0:00:40.2]} 22... Bf4 {[%clk 0:00:22.8]} 23. Qg4 {[%clk 0:00:20.2]} 23...
h5 {[%clk 0:00:19.2]} 24. Qf3 {[%clk 0:00:18.2]} 24... Ne7 {[%clk 0:00:04.8]}
25. Rd7 {[%clk 0:00:16]} 25... Nxf5 {[%clk 0:00:04.9]} 26. Rxc7 {[%clk
0:00:16.2]} 26... Rxc7 {[%clk 0:00:05.8]} 27. g3 {[%clk 0:00:16.6]} 27... Bh6
{[%clk 0:00:04.3]} 28. Re1 {[%clk 0:00:14.9]} 28... Bg7 {[%clk 0:00:04.5]} 29.
g4 {[%clk 0:00:14.3]} 29... hxg4 {[%clk 0:00:04.1]} 30. hxg4 {[%clk 0:00:15.2]}
30... Ne7 {[%clk 0:00:02.2]} 31. Rd1 {[%clk 0:00:15]} 31... Nc6 {[%clk
0:00:02.4]} 32. Nd2 {[%clk 0:00:14.4]} 32... Rd8 {[%clk 0:00:02.4]} 33. Ne4
{[%clk 0:00:12.9]} 1-0